bitfinex-derivatives/quotes_SOLF0:USTF0_20250720
["timestamp","ask_amount","ask_price","bid_price","bid_amount"]
[1753016897677,2.96,182.59,182.52,3.14]
[1753016897978,2.96,182.59,182.57,3.14]
[1753016899073,2.96,182.59,182.58,3.14]
[1753016899676,5.4738,182.61,182.58,3.14]
[1753016899878,9.84090612,182.64,182.58,3.14]
[1753016900275,6.88090612,182.64,182.63,5.4731]
[1753016900478,6.88090612,182.64,182.63,8.6131]
[1753016902283,6.88090612,182.64,182.63,3.14]
[1753016905376,6.88090612,182.64,182.63,8.6131]
[1753016906179,6.88090612,182.64,182.63,3.14]
[1753016906585,9.84090612,182.64,182.63,3.14]
[1753016907382,6.88090612,182.64,182.63,3.14]
[1753016909684,6.88090612,182.64,182.39,31.57937757]
[1753016909685,2.96,182.63,182.54,7.23831385]
[1753016909885,5.4736,182.62,182.58,5.4744]
[1753016910082,2.96,182.63,182.57,3.08]
[1753016911887,5.4735,182.62,182.57,8.5547]
[1753016912083,5.4735,182.62,182.57,5.4747]
[1753016912283,2.96,182.6,182.58,3.08]
[1753016914993,2.96,182.59,182.58,3.08]
[1753016917086,5.4736,182.62,182.58,3.08]
[1753016917293,5.474,182.6,182.58,3.08]
[1753016917495,2.96,182.61,182.56,5.475]
[1753016917695,2.96,182.61,182.57,3.08]
[1753016917901,5.474,182.6,182.57,3.08]
[1753016918197,2.96,182.61,182.57,3.08]
[1753016918697,2.96,182.61,182.51,3.08]
[1753016919092,5.4745,182.59,182.54,5.4756]
[1753016919293,2.96,182.62,182.55,3.08]
[1753016919495,5.503,182.61,182.55,3.08]
[1753016919698,5.4746,182.58,182.55,3.08]
[1753016919898,2.96,182.56,182.55,3.08]
[1753016920498,2.96,182.56,182.54,8.5558]
[1753016920697,2.96,182.56,182.54,3.08]
[1753016922491,2.96,182.55,182.54,3.08]
[1753016922895,2.96,182.55,182.5,3.08]
[1753016923701,2.96,182.55,182.52,3.08]
[1753016924097,2.96,182.55,182.53,5.4759]
[1753016924301,2.96,182.55,182.54,3.08]
[1753016924794,5.4752,182.56,182.49,102.28]
[1753016925000,2.96,182.55,182.5,3.08]
[1753016925208,2.96,182.54,182.53,3.08]
[1753016925397,5.4752,182.56,182.53,3.08]
[1753016925597,2.96,182.55,182.54,3.08]
[1753016927104,2.96,182.54,182.53,3.08]
[1753016927401,5.4743,182.59,182.47,10.9558]
[1753016927602,8.4343,182.59,182.55,3.08]
[1753016927997,8.4343,182.59,182.55,8.5553]
[1753016928203,2.96,182.59,182.56,3.08]
[1753016928697,2.96,182.59,182.57,3.08]
[1753016928898,2.96,182.59,182.58,3.08]
[1753016930201,2.96,182.59,182.56,8.5552]
[1753016930400,5.4745,182.59,182.56,3.08]
[1753016930600,2.96,182.57,182.49,4.17194821]
[1753016930905,2.96,182.56,182.55,3.08]
[1753016931298,5.503,182.61,182.55,3.08]
[1753016931604,8.4342,182.6,182.57,3.08]
[1753016931806,5.4742,182.6,182.57,3.08]
[1753016932004,2.96,182.58,182.57,3.08]
[1753016933903,5.4741,182.6,182.57,3.08]
[1753016934205,8.4341,182.6,182.58,3.08]
[1753016934505,8.4343,182.59,182.58,3.08]
[1753016934700,8.4343,182.59,182.49,3.08]
[1753016934905,2.96,182.58,182.51,3.08]
[1753016935709,8.4346,182.58,182.56,3.08]
[1753016936008,2.96,182.58,182.57,3.08]
[1753016937909,5.4746,182.59,182.55,5.4753]
[1753016938109,5.4746,182.59,182.58,3.09]
[1753016939308,8.4346,182.59,182.58,3.09]
[1753016942517,2.96,182.62,182.58,3.09]
[1753016942814,9.84090612,182.64,182.58,3.09]
[1753016943008,5.4731,182.63,182.6,3.09]
[1753016943206,9.84090612,182.64,182.6,3.09]
[1753016943413,6.88090612,182.64,182.6,3.09]
[1753016943610,6.88090612,182.64,182.63,3.09]
[1753016944213,6.88090612,182.64,182.63,8.5631]
[1753016946216,6.88090612,182.64,182.63,3.09]
[1753016946615,6.88090612,182.64,182.61,3.09]
[1753016946918,2.95,182.62,182.49,4.51188761]
[1753016947217,5.4747,182.58,182.5,4.16668184]
[1753016947416,5.4747,182.58,182.47,102.26]
[1753016947417,2.96,182.59,182.51,4.16668184]
[1753016947612,2.96,182.59,182.47,102.26]
[1753016947813,2.96,182.59,182.48,4.16913525]
[1753016948010,2.96,182.59,182.43,368.08]
[1753016948211,2.96,182.59,182.44,4.17109098]
[1753016948407,2.96,182.59,182.45,4.17109098]
[1753016948614,2.96,182.59,182.43,368.08]
[1753016948810,2.96,182.59,182.44,4.17005981]
[1753016949106,2.96,182.51,182.46,3.09]
[1753016949513,2.96,182.51,182.43,368.08]
[1753016949514,2.96,182.51,182.49,3.09]
[1753016949714,2.96,182.51,182.5,3.09]
[1753016950718,2.96,182.51,182.5,8.567]
[1753016951121,2.96,182.53,182.5,8.567]
[1753016951415,2.96,182.58,182.51,3.09]
[1753016951921,2.96,182.58,182.54,3.09]
[1753016952910,2.96,182.56,182.54,3.09]
[1753016953213,2.96,182.56,182.43,368.08]
[1753016953214,2.96,182.56,182.55,3.09]
[1753016953919,2.96,182.62,182.55,3.09]
[1753016954419,2.96,182.62,182.57,5.4747]
[1753016954623,2.96,182.61,182.46,15.12404517]
[1753016954817,2.96,182.62,182.59,3.09]
[1753016955122,2.96,182.62,182.58,3.09]
[1753016955321,2.96,182.62,182.57,3.09]
[1753016955522,2.96,182.62,182.47,4.1691775]
[1753016955723,2.96,182.62,182.49,3.09]
[1753016956420,2.96,182.59,182.58,3.09]
[1753016956621,2.96,182.58,182.56,3.09]
[1753016956917,2.96,182.57,182.56,8.565]
[1753016957122,2.96,182.57,182.56,3.09]
[1753016958819,2.96,182.57,182.56,8.5652]
[1753016959523,2.96,182.58,182.57,3.09]
[1753016961825,6.88090612,182.64,182.55,5.4754]
[1753016962027,2.96,182.63,182.56,3.09]
[1753016962326,5.4742,182.6,182.56,3.09]
[1753016962819,2.96,182.57,182.56,3.09]
[1753016966230,2.96,182.57,182.56,8.5652]
[1753016967329,2.96,182.63,182.47,3.09]
[1753016968024,3.08,182.58,182.47,3.09]
[1753016969625,5.4747,182.58,182.46,10.956]
[1753016969830,3.08,182.57,182.56,3.02]
[1753016970628,3.08,182.59,182.47,3.02]
[1753016971431,3.08,182.61,182.47,3.02]
[1753016971634,3.08,182.61,182.5,3.02]
[1753016971931,3.08,182.6,182.59,3.02]
[1753016972135,3.08,182.6,182.53,3.02]
[1753016972729,3.08,182.63,182.54,3.02]
[1753016973734,3.08,182.63,182.55,5.4755]
[1753016974328,5.4742,182.6,182.55,5.4755]
[1753016974522,3.08,182.59,182.5,3.02]
[1753016974726,3.08,182.59,182.51,4.17565204]
[1753016974926,3.08,182.59,182.49,102.2]
[1753016974927,5.4746,182.59,182.54,5.4756]
[1753016975123,3.08,182.58,182.52,3.02]
[1753016975624,3.08,182.55,182.51,3.02]
[1753016975824,3.08,182.55,182.49,3.02]
[1753016976026,3.08,182.53,182.5,3.02]
[1753016976830,3.08,182.53,182.5,8.4968]
[1753016977135,3.08,182.6,182.44,3.02]
[1753016977434,3.08,182.56,182.46,3.02]
[1753016977634,3.08,182.56,182.48,3.02]
[1753016977829,3.08,182.56,182.52,5.4764]
[1753016978025,3.08,182.55,182.52,5.4764]
[1753016978434,8.5556,182.55,182.51,8.4966]
[1753016978731,3.08,182.54,182.51,8.4966]
[1753016978926,8.5558,182.54,182.51,3.02]
[1753016979127,3.08,182.53,182.5,5.4769]
[1753016979323,3.08,182.53,182.5,8.4969]
[1753016979529,3.08,182.53,182.5,3.02]
[1753016979930,5.4758,182.55,182.51,5.4765]
[1753016980131,3.08,182.6,182.5,3.02]
[1753016980536,5.4754,182.56,182.52,5.4762]
[1753016980832,3.08,182.6,182.43,372.59914891]
[1753016981035,5.4756,182.55,182.5,3.02]
[1753016981229,3.08,182.54,182.51,3.02]
[1753016982530,5.4758,182.54,182.51,3.02]
[1753016982736,3.08,182.53,182.51,3.02]
[1753016982936,3.08,182.53,182.5,3.02]
[1753016983835,3.08,182.52,182.48,3.02]
[1753016984333,3.08,182.58,182.4,3.02]
[1753016984532,16.43,182.56,182.42,3.02]
[1753016984737,3.08,182.55,182.42,3.02]
[1753016984936,5.4779,182.48,182.42,8.4992]
[1753016985138,3.08,182.47,182.38,3.02]
[1753016985339,3.08,182.47,182.42,5.4792]
[1753016985533,3.08,182.47,182.43,3.02]
[1753016985738,3.08,182.47,182.37,3.02]
[1753016986042,3.08,182.47,182.39,3.02]
[1753016986335,3.08,182.47,182.37,3.02]
[1753016987038,5.4791,182.44,182.37,3.02]
[1753016987236,3.08,182.43,182.37,3.02]
[1753016987438,3.08,182.4,182.36,3.02]
[1753016987636,3.08,182.4,182.27,470.42]
[1753016987836,3.08,182.47,182.37,3.02]
[1753016988032,3.08,182.5,182.3,3.02]
[1753016988232,3.08,182.5,182.32,4.51838327]
[1753016988434,3.08,182.5,182.34,3.02]
[1753016988635,5.4783,182.46,182.41,5.4795]
[1753016988839,3.08,182.44,182.42,3.02]
[1753016989135,3.08,182.43,182.41,5.4797]
[1753016989443,3.08,182.5,182.41,5.4797]
[1753016989843,3.08,182.45,182.42,3.02]
[1753016990141,3.08,182.5,182.42,8.4993]
[1753016990341,3.08,182.45,182.43,3.02]
[1753016990543,3.08,182.44,182.43,3.02]
[1753016991741,3.08,182.44,182.35,3.02]
[1753016992545,3.08,182.5,182.38,3.02]
[1753016992746,3.08,182.5,182.36,3.02]
[1753016992941,16.43,182.5,182.36,3.02]
[1753016993140,3.08,182.48,182.34,3.02]
[1753016993344,3.08,182.46,182.34,3.02]
[1753016993537,3.08,182.39,182.36,3.02]
[1753016993740,3.08,182.38,182.36,3.02]
[1753016993935,3.08,182.45,182.31,3.02]
[1753016994340,16.43,182.44,182.31,3.02]
[1753016994544,3.08,182.33,182.24,3.02]
[1753016995641,3.08,182.33,182.17,368.36]
[1753016995642,3.08,182.31,182.2,3.02]
[1753016996240,3.08,182.3,182.22,3.02]
[1753016997447,5.4834,182.29,182.23,5.4849]
[1753016997642,3.08,182.27,182.24,3.02]
[1753016997849,5.503,182.32,182.25,3.02]
[1753016998038,3.08,182.31,182.25,3.02]
[1753016998743,3.04,182.38,182.25,3.02]
[1753016999644,5.4815,182.36,182.25,3.02]
[1753016999846,3.04,182.35,182.25,3.02]
[1753017000550,3.04,182.37,182.25,3.02]
[1753017000749,3.04,182.36,182.33,3.22]
[1753017000949,5.503,182.4,182.33,3.22]
[1753017001151,3.04,182.34,182.33,3.22]
[1753017001452,3.04,182.34,182.24,3.22]
[1753017001946,3.04,182.39,182.3,8.7028]
[1753017002146,3.04,182.39,182.3,3.22]
[1753017002341,3.04,182.34,182.31,8.7027]
[1753017002552,3.04,182.39,182.31,3.22]
[1753017002959,5.503,182.4,182.33,3.22]
[1753017003146,3.04,182.39,182.33,3.22]
[1753017003550,3.04,182.38,182.33,3.22]
[1753017003852,5.4808,182.38,182.34,3.22]
[1753017004049,3.04,182.39,182.23,3.22]
[1753017004251,3.04,182.39,182.25,3.22]
[1753017004457,5.4804,182.39,182.35,5.4815]
[1753017004754,5.503,182.42,182.37,3.22]
[1753017004755,3.04,182.38,182.37,3.22]
[1753017005350,3.04,182.38,182.24,10.9696]
[1753017005351,3.04,182.38,182.26,3.22]
[1753017005553,3.04,182.37,182.34,5.4818]
[1753017005856,3.04,182.36,182.35,3.22]
[1753017007152,3.04,182.36,182.33,3.22]
[1753017007352,3.04,182.35,182.25,3.22]
[1753017007554,3.04,182.35,182.32,5.4822]
[1753017007756,3.04,182.35,182.25,3.22]
[1753017008162,3.04,182.35,182.33,5.482]
[1753017008362,3.04,182.35,182.34,3.22]
[1753017008760,3.04,182.35,182.3,3.22]
[1753017009760,5.4823,182.33,182.3,3.22]
[1753017009960,3.04,182.32,182.3,3.22]
[1753017010662,5.503,182.38,182.28,3.22]
[1753017010863,3.04,182.37,182.28,3.22]
[1753017011465,3.04,182.34,182.28,3.22]
[1753017012866,3.04,182.39,182.22,3.22]
[1753017013768,5.4812,182.36,182.31,5.4826]
[1753017013969,5.4812,182.36,182.32,3.22]
[1753017014165,3.04,182.34,182.23,3.22]
[1753017015769,3.04,182.36,182.24,3.22]
[1753017016374,3.04,182.35,182.24,3.22]
[1753017016866,3.04,182.33,182.32,3.22]
[1753017017467,3.04,182.33,182.32,8.7024]
[1753017017867,3.04,182.4,182.33,5.4821]
[1753017018070,3.04,182.4,182.33,3.22]
[1753017018473,3.04,182.36,182.34,3.22]
[1753017018673,3.04,182.35,182.34,3.22]
[1753017019271,3.04,182.37,182.36,3.22]
[1753017019573,3.04,182.43,182.36,3.22]
[1753017019771,3.04,182.39,182.37,3.22]
[1753017020068,3.04,182.39,182.38,3.22]
[1753017020275,3.04,182.41,182.38,3.22]
[1753017020472,3.04,182.4,182.39,3.22]
[1753017022172,5.503,182.51,182.31,7.37179054]
[1753017022472,3.04,182.44,182.33,3.22]
[1753017022775,3.04,182.44,182.39,5.4801]
[1753017022976,3.04,182.44,182.31,3.22]
[1753017023276,3.04,182.44,182.33,3.22]
[1753017024176,5.4795,182.42,182.33,3.22]
[1753017024476,3.04,182.41,182.33,3.22]
[1753017024972,102.26,182.48,182.38,3.22]
[1753017025171,3.04,182.47,182.38,3.22]
[1753017025571,3.04,182.47,182.4,3.22]
[1753017026678,3.04,182.47,182.28,6.01610334]
[1753017026679,3.04,182.51,182.45,3.22]
[1753017027771,8.5167,182.51,182.46,5.478]
[1753017027974,3.02,182.49,182.48,3.18]
[1753017028773,3.02,182.5,182.49,3.18]
[1753017029380,3.02,182.49,182.48,3.18]
[1753017029681,3.02,182.49,182.36,3.18]
[1753017029882,3.02,182.49,182.38,3.18]
[1753017030078,3.02,182.49,182.45,5.4783]
[1753017030378,5.503,182.56,182.46,3.18]
[1753017030574,3.02,182.47,182.46,3.18]
[1753017030768,5.503,182.56,182.45,3.18]
[1753017030972,5.503,182.52,182.45,3.18]
[1753017031171,5.503,182.52,182.35,3.18]
[1753017031172,3.02,182.51,182.35,3.18]
[1753017031373,3.02,182.51,182.37,3.18]
[1753017031575,3.02,182.51,182.39,3.18]
[1753017031777,3.02,182.51,182.41,3.18]
[1753017031972,3.02,182.51,182.48,5.4776]
[1753017032169,3.02,182.51,182.5,3.18]
[1753017032576,3.02,182.53,182.51,3.18]
[1753017032875,3.02,182.52,182.51,3.18]
[1753017033076,3.02,182.52,182.5,3.18]
[1753017033278,3.02,182.52,182.51,3.18]
[1753017034778,3.02,182.55,182.51,5.4765]
[1753017034973,3.02,182.55,182.39,4.13962874]
[1753017035171,3.02,182.55,182.41,3.18]
[1753017035376,5.4763,182.53,182.41,3.18]
[1753017035576,3.02,182.52,182.41,3.18]
[1753017036277,8.4966,182.52,182.41,3.18]
[1753017036677,5.4766,182.52,182.48,5.4775]
[1753017036873,3.02,182.51,182.49,3.18]
[1753017037073,8.4967,182.51,182.49,3.18]
[1753017037480,3.02,182.5,182.49,3.18]
[1753017038275,8.4965,182.52,182.49,3.18]
[1753017038474,3.02,182.55,182.41,15.09619787]
[1753017038680,3.02,182.55,182.43,3.18]
[1753017038878,3.02,182.55,182.45,3.18]
[1753017039180,3.02,182.55,182.49,3.18]
[1753017039678,8.4957,182.55,182.51,5.4766]
[1753017039982,3.02,182.54,182.52,3.18]
[1753017040879,3.02,182.54,182.52,8.6563]
[1753017041076,3.02,182.53,182.52,3.18]
[1753017041779,3.02,182.55,182.52,8.6563]
[1753017041981,3.02,182.54,182.53,3.18]
[1753017042573,3.02,182.54,182.52,5.4764]
[1753017042979,3.02,182.53,182.52,5.4764]
[1753017043285,3.02,182.53,182.52,8.6564]
[1753017043981,5.503,182.58,182.5,3.18]
[1753017044284,3.02,182.53,182.5,3.18]
[1753017044479,3.02,182.52,182.5,3.18]
[1753017044682,3.02,182.52,182.42,10.9586]
[1753017044683,3.02,182.52,182.43,3.18]
[1753017044885,3.02,182.56,182.43,3.18]
[1753017045087,3.02,182.56,182.44,4.13184596]
[1753017045282,8.4954,182.56,182.52,5.4762]
[1753017045482,3.02,182.55,182.53,3.18]
[1753017045681,3.02,182.54,182.53,3.18]
[1753017045880,5.503,182.58,182.52,5.4762]
[1753017046086,5.503,182.57,182.52,5.4762]
[1753017046282,3.02,182.56,182.52,5.4762]
[1753017046881,5.4755,182.55,182.52,5.4762]
[1753017047076,3.02,182.54,182.51,8.6566]
[1753017048082,3.02,182.53,182.52,8.6564]
[1753017048284,3.02,182.6,182.53,3.18]
[1753017048477,5.4751,182.57,182.53,8.656]
[1753017048682,3.02,182.56,182.53,8.656]
[1753017049385,3.02,182.55,182.53,3.18]
[1753017049585,3.02,182.54,182.53,3.18]
[1753017049886,3.02,182.53,182.52,8.6563]
[1753017051386,188.27197448,182.61,182.44,10.9576]
[1753017051387,3.02,182.52,182.5,3.18]
[1753017051583,204.70197448,182.61,182.41,119.49768875]
[1753017051890,3.02,182.5,182.49,8.6573]
[1753017053987,5.503,182.56,182.42,3.18]
[1753017054183,3.02,182.52,182.42,3.18]
[1753017054486,3.02,182.5,182.4,8.6597]
[1753017054788,3.02,182.5,182.4,3.18]
[1753017054980,16.43,182.5,182.36,3.18]
[1753017055181,3.02,182.49,182.36,3.18]
[1753017055577,5.4787,182.45,182.41,5.4797]
[1753017055881,3.02,182.43,182.42,3.18]
[1753017057992,3.02,182.43,182.4,8.66]
[1753017058186,2.97,182.42,182.41,3.08]
[1753017059285,2.97,182.43,182.42,3.08]
[1753017059898,5.4783,182.46,182.43,3.08]
[1753017060084,2.97,182.44,182.43,3.08]
[1753017060390,107.62,182.53,182.45,3.08]
[1753017060583,2.97,182.52,182.43,3.08]
[1753017060986,2.97,182.46,182.43,3.08]
[1753017061186,2.97,182.46,182.42,8.5592]
[1753017061384,2.97,182.46,182.42,3.08]
[1753017061582,2.97,182.45,182.42,3.08]
[1753017061790,2.97,182.45,182.4,3.08]
[1753017061991,5.4787,182.45,182.41,3.08]
[1753017062192,2.97,182.43,182.41,3.08]
[1753017062381,2.97,182.44,182.36,4.1575444]
[1753017062582,2.97,182.44,182.4,3.08]
[1753017062583,5.4789,182.44,182.4,3.08]
[1753017062985,2.97,182.42,182.41,3.08]
[1753017063390,2.97,182.42,182.39,8.5603]
[1753017063693,2.97,182.42,182.36,3.08]
[1753017063889,124.05,182.53,182.36,3.08]
[1753017064091,2.97,182.39,182.36,3.08]
[1753017064391,2.97,182.39,182.32,3.08]
[1753017064586,2.97,182.39,182.33,4.16570986]
[1753017064796,2.97,182.39,182.34,3.08]
[1753017065892,2.97,182.38,182.37,3.08]
[1753017067088,2.97,182.4,182.32,3.08]
[1753017067286,2.97,182.42,182.32,3.08]
[1753017067485,2.97,182.42,182.38,5.4804]
[1753017067790,2.97,182.48,182.39,3.08]
[1753017067990,2.97,182.48,182.4,5.4799]
[1753017067991,5.4787,182.45,182.4,5.4799]
[1753017068184,2.97,182.44,182.41,3.08]
[1753017068383,5.4787,182.45,182.42,3.08]
[1753017068593,2.97,182.43,182.42,3.08]
[1753017068894,2.97,182.46,182.35,3.08]
[1753017069089,8.45,182.46,182.35,3.08]
[1753017069392,2.97,182.39,182.36,3.08]
[1753017069691,5.4802,182.4,182.36,3.08]
[1753017070089,2.97,182.37,182.36,3.08]
[1753017070286,5.48,182.45,182.36,5.4812]
[1753017070492,2.97,182.39,182.38,3.08]
[1753017070692,5.4802,182.4,182.31,119.50143888]
[1753017070893,2.97,182.38,182.37,3.08]
[1753017071888,2.97,182.38,182.35,3.08]
[1753017072087,2.97,182.38,182.23,368.38]
[1753017072290,2.97,182.38,182.31,3.08]
[1753017072492,2.97,182.34,182.32,3.08]
[1753017072693,2.97,182.33,182.32,3.08]
[1753017072989,2.97,182.34,182.32,3.08]
[1753017073194,2.97,182.33,182.32,3.08]
[1753017073389,32.8663,182.47,182.33,5.4819]
[1753017073390,2.97,182.35,182.33,5.4819]
[1753017073590,2.97,182.35,182.34,3.08]
[1753017073994,5.48,182.43,182.34,8.5615]
[1753017074194,2.97,182.41,182.35,3.08]
[1753017074596,5.4805,182.39,182.35,3.08]
[1753017074796,2.97,182.38,182.36,3.08]
[1753017075192,2.97,182.38,182.35,3.08]
[1753017075397,8.45,182.43,182.28,3.08]
[1753017075592,2.97,182.42,182.28,3.08]
[1753017075894,2.97,182.34,182.28,3.08]
[1753017076496,5.4823,182.33,182.28,5.4835]
[1753017076696,2.97,182.32,182.29,3.08]
[1753017076897,2.97,182.32,182.23,368.38]
[1753017077098,9.20176239,182.48,182.21,3.08]
[1753017077099,16.43,182.42,182.21,3.08]
[1753017077400,2.97,182.37,182.21,3.08]
[1753017077604,2.97,182.3,182.21,3.08]
[1753017078699,2.97,182.29,182.27,3.08]
[1753017078905,2.97,182.28,182.27,3.08]
[1753017079406,2.97,182.29,182.28,3.08]
[1753017079904,16.43,182.41,182.2,222.25104693]
[1753017080206,2.97,182.28,182.27,3.08]
[1753017081601,2.97,182.3,182.27,3.08]
[1753017081800,2.97,182.29,182.28,3.08]
[1753017082004,2.97,182.41,182.29,3.08]
[1753017082597,2.97,182.41,182.3,5.4827]
[1753017082896,2.97,182.41,182.31,3.08]
[1753017083101,2.97,182.34,182.31,3.08]
[1753017083403,2.97,182.32,182.31,3.08]
[1753017083605,2.97,182.32,182.29,3.08]
[1753017083806,2.97,182.44,182.29,3.08]
[1753017084404,2.97,182.34,182.31,3.08]
[1753017084703,2.97,182.33,182.32,3.08]
[1753017085108,5.4824,182.32,182.2,119.75104693]
[1753017085308,2.97,182.3,182.29,3.08]
[1753017086813,2.97,182.29,182.27,3.08]
[1753017087006,2.97,182.29,182.21,3.08]
[1753017087303,2.97,182.4,182.21,3.08]
[1753017087502,2.97,182.31,182.21,3.08]
[1753017087905,21.91,182.43,182.28,5.4834]
[1753017088104,3.13,182.31,182.2,119.75104693]
[1753017088302,3.13,182.4,182.28,2.92]
[1753017088505,5.4827,182.31,182.28,2.92]
[1753017088717,3.13,182.29,182.28,2.92]
[1753017089508,3.13,182.33,182.29,2.92]
[1753017089701,3.13,182.32,182.2,119.75104693]
[1753017089903,8.6124,182.32,182.28,5.4836]
[1753017090106,3.13,182.3,182.29,2.92]
[1753017090309,3.13,182.4,182.21,2.92]
[1753017090510,5.4824,182.32,182.28,5.4835]
[1753017090705,3.13,182.31,182.3,2.92]
[1753017091011,108.08,182.41,182.28,5.4835]
[1753017091209,3.13,182.32,182.31,2.92]
[1753017091708,3.13,182.41,182.31,2.92]
[1753017092307,3.13,182.41,182.32,2.92]
[1753017093812,5.4814,182.36,182.32,2.92]
[1753017094012,3.13,182.41,182.32,2.92]
[1753017094208,3.13,182.41,182.21,4.14908896]
[1753017094417,3.13,182.41,182.28,5.4835]
[1753017094712,3.13,182.41,182.29,2.92]
[1753017095215,3.13,182.31,182.3,2.92]
[1753017095412,3.13,182.33,182.3,2.92]
[1753017095714,3.13,182.33,182.29,2.92]
[1753017096517,3.13,182.36,182.29,2.92]
[1753017097014,3.13,182.36,182.31,2.92]
[1753017097514,3.13,182.36,182.22,2.92]
[1753017098116,3.13,182.32,182.29,2.92]
[1753017098507,5.4822,182.33,182.29,2.92]
[1753017098708,8.6122,182.33,182.29,2.92]
[1753017098912,5.48,182.4,182.28,2.92]
[1753017099112,5.48,182.38,182.28,2.92]
[1753017099312,5.4824,182.33,182.28,2.92]
[1753017099513,3.13,182.32,182.28,5.4836]
[1753017099708,5.48,182.38,182.28,5.4836]
[1753017099919,8.6124,182.32,182.31,2.92]
[1753017102920,5.4824,182.32,182.3,2.92]
[1753017103125,3.13,182.33,182.3,2.92]
[1753017103318,3.13,182.32,182.31,2.92]
[1753017103922,8.6126,182.32,182.31,2.92]
[1753017104122,3.13,182.38,182.31,2.92]
[1753017104426,8.6108,182.38,182.35,2.92]
[1753017104623,3.13,182.4,182.35,2.92]
[1753017105128,3.13,182.42,182.38,2.92]
[1753017105421,3.13,182.41,182.38,2.92]
[1753017105926,3.13,182.47,182.39,2.92]
[1753017106319,5.4793,182.43,182.39,5.4801]
[1753017106624,8.6093,182.43,182.39,5.4801]
[1753017106824,8.6093,182.43,182.41,2.92]
[1753017107027,5.4794,182.42,182.39,5.4801]
[1753017107424,3.13,182.41,182.38,5.4805]
[1753017107621,3.13,182.41,182.4,2.92]
[1753017107924,8.6097,182.41,182.4,2.92]
[1753017108826,3.13,182.41,182.4,2.92]
[1753017109329,5.4795,182.42,182.4,2.92]
[1753017109521,8.6091,182.44,182.4,2.92]
[1753017109828,8.6091,182.44,182.41,5.4794]